Cogmind - Beta 15 @@@ ROGUE MODE // 2025.06.04 @ 20:25:12 Player: pakman Result: Destroyed by H-61 Shepherd with Heavy Assault Cannon Performance ------------- Evolutions (2) 1000 Regions Visited (4) 800 Robots Destroyed (46) 230 Value Destroyed (1274) 1274 Prototype IDs (0) 0 Alien Tech Used (0) 0 Bonus (0) 0 TOTAL SCORE: 3304 Bonus ------- None Cogmind --------- Core Integrity 0/550 Matter 289/300 Energy 100/100 System Corruption 9% Temperature Cool (0) Movement Core (50) Location -8/Materials Parts ------- > --- POWER (1) -------- (None) > --- PROPULSION (3) --- (None) > --- UTILITY (5) ------ (None) > --- WEAPON (2) ------- (None) > --- INVENTORY (5) ---- Titanium Leg Improved Heat Sink Improved Signal Interpreter Shock Rifle High-powered Shotgun Peak State ------------ > --- POWER ------------ Improved Ion Engine > --- PROPULSION ------- Light Treads Light Treads Light Treads > --- UTILITY ---------- Medium Storage Unit Actuator Array Reactive Plating Hacking Suite System Shield > --- WEAPON ----------- Heavy Hammer Heavy Mace > --- INVENTORY -------- Titanium Leg Subdweller Monowheel Improved Heat Sink Improved Sensor Array Improved Signal Interpreter Trap Extractor Shock Rifle Shock Rifle High-powered Shotgun Katana [Rating: 25] Favorites ----------- Power Light Nuclear Core Engine Light Ion Engine Power Core Light Nuclear Core Propulsion Aluminum Leg Treads Light Treads Leg Aluminum Leg Wheel Subdweller Monowheel Utility Seismic Detector Device Seismic Detector Storage Small Storage Unit Hackware Hacking Suite Protection Reactive Plating Weapon EM Shotgun Energy Gun EM Shotgun Ballistic Gun Light Assault Rifle Special Weapon Mining Laser Impact Weapon Heavy Hammer Slashing Weapon Mining Claw Build | -11 -10 -10 -10 -8 ------- Run | Yrd Mat Min Sub Mat Slots Evolved 4 | . . . . 4 Power . | . . . . . Propulsion 1 | . . . . 1 Utility 3 | . . . . 3 Weapon . | . . . . . Parts Attached 38 | 3 12 . 2 21 Power 7 | . 3 . 1 3 Engine 4 | . 2 . 1 1 Core 3 | . 1 . . 2 Reactor . | . . . . . Propulsion 7 | . 3 . . 4 Treads 4 | . 1 . . 3 Leg 2 | . 2 . . . Wheel 1 | . . . . 1 Hover . | . . . . . Flight . | . . . . . Utility 15 | 2 1 . . 12 Device 6 | 2 1 . . 3 Storage 1 | . . . . 1 Processor . | . . . . . Hackware 2 | . . . . 2 Protection 6 | . . . . 6 Artifact . | . . . . . Weapon 9 | 1 5 . 1 2 Energy Gun 5 | 1 4 . . . Energy Cannon . | . . . . . Ballistic Gun . | . . . . . Ballistic Cannon . | . . . . . Launcher . | . . . . . Special Weapon 1 | . 1 . . . Impact Weapon 2 | . . . . 2 Slashing Weapon 1 | . . . 1 . Piercing Weapon . | . . . . . Special Melee Weapon . | . . . . . Unidentified Prototypes . | . . . . . Corrupted Parts 3 | . 2 . . 1 System Corruption 14 | . 10 . . 4 Parts Lost 24 | . 7 . 1 16 Power 4 | . 2 . . 2 Propulsion 8 | . 2 . . 6 Utility 7 | . . . 1 6 Weapon 5 | . 3 . . 2 Highest Loss Streak 7 | . 7 . 1 4 To Critical Strikes . | . . . . . Average Backups 7 | 6 6 6 6 8 Power . | 1 1 1 1 . Propulsion 2 | 3 1 1 2 2 Utility 2 | . 1 2 1 3 Weapon 2 | 1 2 2 2 2 Tool/Special . | . . . . . Unused Backups 15 | . 1 . . 14 Power . | . . . . . Propulsion 3 | . . . . 3 Utility 6 | . . . . 6 Weapon 6 | . 1 . . 5 Tool/Special . | . . . . . Average Slot Usage (%) 92 | . 98 100 98 85 Engine 5 | . 10 . 3 4 Core 5 | . 3 14 10 3 Treads 7 | . . . . 15 Leg 16 | . 26 28 28 4 Device 11 | . 14 14 13 8 Storage 11 | . 14 14 14 8 Hackware 5 | . . . . 10 Protection 5 | . . . . 11 Energy Gun 9 | . 17 14 12 3 Ballistic Gun 2 | . 10 . . . Special Weapon 2 | . . 14 10 . Impact Weapon 5 | . . . . 11 Slashing Weapon 1 | . . . 5 . Peak Build Rating 25 | 7 11 10 12 25 Average Rating 13 | 6 9 10 9 19 On Entrance 8 | 6 7 10 10 9 Naked Turns 46 | . . . . 46 Heaviest Build 39 | 12 17 15 17 39 Greatest Support 60 | 20 20 20 20 60 Greatest Overweight (x) 2 | . 1 . . 2 Average Overweight (x) . | . . . . . Largest Inventory Capacity 10 | 8 8 8 8 10 Average Capacity 8 | 8 8 8 8 9 Most Carried 10 | 8 8 6 8 10 Average Carried 7 | 7 6 6 6 8 Final Capacity 8 | 8 8 8 8 5 Final Carried 7 | 7 6 6 7 5 Class Distribution -------------------- 58% | Scavenger-Mutant 28% | Mutant 11% | Hacker-Gladiator Dominant Class ---------------- Mutant | -10/Materials Scavenger-Mutant | -10/Mines Scavenger-Mutant | -10/Subcaves Scavenger-Mutant | -8/Materials Resources | -11 -10 -10 -10 -8 ----------- Run | Yrd Mat Min Sub Mat Matter Collected 828 | 246 127 . 134 321 Remotely 10 | 10 . . . . Salvage Created 1653 | 165 423 . 124 941 Parts 81 | 16 30 . 12 23 Haulers Intercepted 1 | . 1 . . . Recyclers Shooed . | . . . . . Parts Field Recycled . | . . . . . Retrieved Matter . | . . . . . Parts Self-Destructed 7 | . . . 7 . Prevented 2 | . . . 2 . Kills | -11 -10 -10 -10 -8 ------- Run | Yrd Mat Min Sub Mat Combat Hostiles Destroyed 33 | . 9 . 5 19 Melee 8 | . . . . 8 Guns 16 | . 9 . 5 2 Classes Destroyed 13 | 2 6 . 1 4 Worker 1 | . 1 . . . Tunneler 3 | 3 . . . . Hauler 1 | . 1 . . . Recycler 2 | 1 . . . 1 Mechanic 2 | . . . . 2 Operator 1 | . 1 . . . Watcher 3 | . 2 . . 1 Swarmer 10 | . 3 . 4 3 Grunt 15 | . 6 . . 9 Brawler 1 | . . . . 1 Sentry 5 | . . . . 5 Hunter 1 | . . . . 1 Subdweller 1 | . . . 1 . Best Kill Streak 6 | 2 5 . 4 6 Combat Bots Only 6 | . 5 . 4 6 Max Kills in Single Turn 2 | 1 2 . 1 2 Gunslinging . | . . . . . Exploded . | . . . . . Melee 1 | . . . . 1 Uniques/NPCs Destroyed . | . . . . . Combat | -11 -10 -10 -10 -8 -------- Run | Yrd Mat Min Sub Mat Hostile Shots Fired 371 | . 101 . 34 236 Missed 98 | . 22 . 11 65 Hits 273 | . 79 . 23 171 Melee 1 | . . . . 1 Projectile 272 | . 79 . 23 170 Critical Strikes 8 | . . . 1 7 Damage Taken 3492 | . 876 . 179 2437 Core 819 | . 215 . 26 578 Absorbed by Shields . | . . . . . Ignored by Resistances 58 | . . . . 58 Regen/Repaired (Parts) 118 | . . . . 118 Core Remaining (%) 51 | 100 . . 3 . Volleys Fired 86 | 16 48 . 8 14 Largest 2 | 2 2 . 2 2 Hottest 90 | 70 90 . 90 90 Shots Fired 167 | 32 97 . 17 21 Gun 167 | 32 97 . 17 21 Cannon . | . . . . . Launcher . | . . . . . Special . | . . . . . Kinetic 62 | 16 46 . . . Thermal 44 | 15 29 . . . Explosive . | . . . . . Electromagnetic 61 | 1 22 . 17 21 Robot Hit Streak 13 | 11 13 . 4 9 Robot Miss Streak 7 | 7 6 . 6 3 Penetration Max . | . . . . . Secondary Targets 5 | . 3 . 2 . Max Gunslinging Chain 1 | . 1 . 1 . Shots Hit Robots 161 | 18 63 . 10 70 Core Hits 59 | 6 27 . 6 20 Critical Kills 2 | . . . . 2 Critical Parts Destroyed 10 | . . . . 10 Critical Strikes 15 | . 2 . . 13 Burn 2 | . 2 . . . Smash 13 | . . . . 13 Melee Attacks 99 | . . . 4 95 Impact 94 | . . . . 94 Slashing 5 | . . . 4 1 Piercing . | . . . . . Sneak Attacks 7 | . . . . 7 Combat Hostiles . | . . . . . Follow-up Attacks 13 | . . . . 13 Damage Inflicted 3849 | 194 796 . 117 2742 Guns 1386 | 194 776 . 117 299 Cannons . | . . . . . Explosions 233 | . 20 . . 213 Melee 2222 | . . . . 2222 Ramming 8 | . . . . 8 Kinetic 253 | 66 187 . . . Thermal 618 | 115 290 . . 213 Explosive . | . . . . . Electromagnetic 748 | 13 319 . 117 299 Impact 2222 | . . . . 2222 Slashing . | . . . . . Piercing . | . . . . . Highest Corruption 14 | . 14 14 14 9 Average Corruption 9 | . 7 14 14 7 Corruption Purged . | . . . . . Corruption Blocked . | . . . . . Effects 97 | . 16 5 37 39 Message Errors 25 | . 4 1 13 7 Matter Fused 23 | . 2 1 7 13 Heat Flow Errors 15 | . 3 1 7 4 Energy Discharges 8 | . 3 . 5 . Parts Rejected 3 | . . . 1 2 Parts Fused 1 | . . . 1 . Data Loss (minor) 12 | . 1 1 2 8 Data Loss (major) 6 | . 1 1 . 4 Misfires 2 | . 1 . 1 . Alerts 2 | . 1 . . 1 Overload Shots . | . . . . . Overflow Damage 645 | . . . . 645 Projectiles . | . . . . . Explosions 1 | . . . . 1 Melee 644 | . . . . 644 Knockbacks 5 | . . . . 5 Impact 5 | . . . . 5 Kinetic . | . . . . . Secondary . | . . . . . Self-Inflicted Damage 178 | . 62 . . 116 Shots 5 | . 2 . . 3 Rammed 1 | . . . . 1 Targets Rammed 1 | . . . . 1 Kicked . | . . . . . Crushed . | . . . . . Highest Temperature 335 | 90 335 182 258 254 Average Temperature 89 | 31 107 93 105 74 Received Heat Transfer 1224 | . 321 . 12 891 Effects 1 | . 1 . . . Energy Bleed 1 | . 1 . . . Siege Activations . | . . . . . Martial Activations . | . . . . . Shielding Activations . | . . . . . Robots Disrupted . | . . . . . Combat Hostiles . | . . . . . Robots Corrupted 11 | . . . . 11 Combat Hostiles 9 | . . . . 9 Parts Fried 9 | . . . . 9 Impact Corruptions 31 | . . . . 31 Robots Melted . | . . . . . Combat Hostiles . | . . . . . Parts Melted 3 | . 3 . . . Heat Transferred 1521 | 333 888 . . 300 Parts Sabotaged . | . . . . . Parts Stolen . | . . . . . Parts Stripped . | . . . . . Power Chain Reactions 3 | . . . . 3 Alert | -11 -10 -10 -10 -8 ------- Run | Yrd Mat Min Sub Mat Maximum Alert Level 2 | . . . . 2 Low Security (%) 97 | 100 100 100 . 95 Level 1 1 | . . . . 2 Level 2 . | . . . . 1 Level 3 . | . . . . . Level 4 . | . . . . . Level 5 . | . . . . . High Security . | . . . . . Max Security . | . . . . . Peak Influence 430 | 5 107 14 . 430 Initial 38 | . . 14 . 38 Average 65 | . 35 3 . 87 Influence Increases 1520 | 20 346 . 170 984 Destroy 0b10 Robot/C 640 | . 180 . 80 380 Destroy 0b10 Robot/NC 65 | 20 25 . . 20 Destroy Leader 158 | . 56 . . 102 Trap Triggered on 0b10 20 | . . . . 20 Successful Hack 12 | . 9 . . 3 Select Force Hacks 60 | . 30 . . 30 Disable Machine 60 | . 45 . . 15 Destroy Structure 25 | . 1 . . 24 Partial Spotted 15 | . . . . 15 Lose Combat Pursuer 465 | . . . 90 375 Influence Decreases 1075 | 20 308 38 96 613 Entered New Map 60 | . . 24 . 36 Time Decay 788 | 20 238 14 86 430 Lost Part 217 | . 70 . 10 137 Lost Ally 10 | . . . . 10 Squads Dispatched 10 | . 4 . . 6 Investigation 5 | . 2 . . 3 Extermination . | . . . . . Reinforcement 5 | . 2 . . 3 Assault . | . . . . . Garrison . | . . . . . Intercept . | . . . . . Searches Triggered . | . . . . . Construction Impeded . | . . . . . Haulers Reinforced . | . . . . . Active Scanning Responses . | . . . . . Cargo Convoy Interrupts . | . . . . . Stealth | -11 -10 -10 -10 -8 --------- Run | Yrd Mat Min Sub Mat Distress Signals 6 | . . . . 6 Communications Jammed . | . . . . . Distress Signals . | . . . . . Times Spotted 79 | . 23 . 8 48 Peak Tracking Total 15 | . 5 . 6 15 Tactical Retreats 11 | . . . 2 9 Traps | -11 -10 -10 -10 -8 ------- Run | Yrd Mat Min Sub Mat Traps Triggered 1 | . 1 . . . Indirectly . | . . . . . Trap Hack Attempts . | . . . . . Triggered . | . . . . . Disarmed . | . . . . . Reprogrammed 2 | . . . . 2 Reused 2 | . . . . 2 Traps Extracted . | . . . . . Installed . | . . . . . Triggered 2 | . . . . 2 Machines | -11 -10 -10 -10 -8 ---------- Run | Yrd Mat Min Sub Mat Machines Disabled 4 | . 3 . . 1 Max in Single Turn 3 | . 3 . . 1 Machines Repaired . | . . . . . Machines Dismantled . | . . . . . Machines Sabotaged . | . . . . . Overloaded Fab Kills . | . . . . . Hacking | -11 -10 -10 -10 -8 --------- Run | Yrd Mat Min Sub Mat Machines Accessed 12 | . 4 . . 8 Terminals 7 | . 2 . . 5 Fabricators . | . . . . . Repair Stations 1 | . . . . 1 Recycling Units 4 | . 2 . . 2 Scanalyzers . | . . . . . Garrison Access . | . . . . . Total Hacks 35 | . 10 . . 25 Successful 19 | . 5 . . 14 Failed 16 | . 5 . . 11 Catastrophic 1 | . 1 . . . Database Lockouts . | . . . . . Manual 22 | . 6 . . 16 Terminals 24 | . 5 . . 19 Fabricators . | . . . . . Repair Stations 3 | . . . . 3 Recycling Units 8 | . 5 . . 3 Scanalyzers . | . . . . . Garrison Access . | . . . . . Terminal Hacks 4 | . . . . 4 Locate Traps 1 | . . . . 1 Reprogram Traps 1 | . . . . 1 Hauler Manifests 1 | . . . . 1 Zone Layout 1 | . . . . 1 Fabricator Hacks . | . . . . . Repair Station Hacks 2 | . . . . 2 Scan Component 1 | . . . . 1 Repair 1 | . . . . 1 Recycling Unit Hacks 4 | . 2 . . 2 Report Inventory 2 | . 1 . . 1 Retrieve Components 2 | . 1 . . 1 Scanalyzer . | . . . . . Garrison Access Hacks . | . . . . . Unauthorized Hacks 9 | . 3 . . 6 Terminals 7 | . 2 . . 5 Assimilate 1 | . . . . 1 Botnet 6 | . 2 . . 4 Fabricators . | . . . . . Repair Stations . | . . . . . Recycling Units 2 | . 1 . . 1 Tunnel 2 | . 1 . . 1 Scanalyzers . | . . . . . Garrison Access . | . . . . . Data Cores Recovered . | . . . . . Used . | . . . . . Hacking Detections 9 | . 3 . . 6 Full Trace Events 2 | . 1 . . 1 Feedback Events . | . . . . . Feedback Blocked . | . . . . . Robot Schematics Acquired . | . . . . . Robots Built . | . . . . . Authchips . | . . . . . Time . | . . . . . Total Robot Build Rating . | . . . . . Part Schematics Acquired . | . . . . . Parts Built . | . . . . . Authchips . | . . . . . Time . | . . . . . Total Part Build Rating . | . . . . . Parts Repaired 1 | . . . . 1 Time 26 | . . . . 26 Parts Recycled . | . . . . . Recycled Matter . | . . . . . Retrieved Matter . | . . . . . Retrieved Components 20 | . 10 . . 10 Parts Scanalyzed . | . . . . . Part Schematics Acquired . | . . . . . Parts Damaged . | . . . . . Bothacking | -11 -10 -10 -10 -8 ------------ Run | Yrd Mat Min Sub Mat Used RIF Installer . | . . . . . Robots Hacked . | . . . . . Non-combat . | . . . . . Combat . | . . . . . Robot Hacks Applied . | . . . . . Relay Couplers Released . | . . . . . Fabnet Peak Effective % . | . . . . . Robots Rewired . | . . . . . Allies Hacked . | . . . . . Hacks Repelled . | . . . . . Allies | -11 -10 -10 -10 -8 -------- Run | Yrd Mat Min Sub Mat Total Allies 1 | . . . . 1 Largest Group 1 | . . . . 1 Highest-Rated Group 10 | . . . . 10 Highest-Rated Ally 10 | . . . . 10 Total Orders 1 | . . . . 1 ROAM 1 | . . . . 1 Ally Attacks . | . . . . . Total Damage . | . . . . . Kills . | . . . . . Allies Corrupted . | . . . . . Allies Melted . | . . . . . Intel | -11 -10 -10 -10 -8 ------- Run | Yrd Mat Min Sub Mat Active Infowar (turns) 2614 | 45 831 90 833 815 Seismic 2614 | 45 831 90 833 815 Robot Analysis Total . | . . . . . Derelict Logs Recovered 3 | . . 1 2 . Drone Launches . | . . . . . Drone Recoveries . | . . . . . Exploration | -11 -10 -10 -10 -8 ------------- Run | Yrd Mat Min Sub Mat Turns Passed 3626 | 112 831 90 894 1699 Spaces Moved 2052 | 49 488 72 699 744 Core 90 | . . . . 90 Treads 529 | . 4 . . 525 Legs 1433 | 49 484 72 699 129 Wheels . | . . . . . Hover . | . . . . . Flight . | . . . . . Fastest Speed 50 | 120 120 120 120 50 Average Speed 131 | 120 120 120 120 151 Slowest Speed 260 | 120 190 120 120 260 Overloaded Moves . | . . . . . Propulsion Burnouts . | . . . . . Robots Hopped . | . . . . . Potential Cave-ins . | . . . . . Cave-ins Triggered . | . . . . . Exploration Rate (%) 35 | 3 67 22 34 51 Regions Visited 4 Branch Regions 2 Pre-discovered Areas 3 | . 1 . 1 1 Known Exits Taken 1 | . . . 1 . Unknown Exits Taken 3 | 1 1 1 . . Scrap Searched . | . . . . . Spaces Dug 15 | . . . . 15 Terrain Destroyed 22 | . . . . 22 Melee 15 | . . . . 15 Projectile . | . . . . . AOE 7 | . . . . 7 Terrain Rammed . | . . . . . Walls Destroyed . | . . . . . Machines Disabled . | . . . . . Actions | -11 -10 -10 -10 -8 --------- Run | Yrd Mat Min Sub Mat Total 2667 | 73 645 75 728 1146 Wait 352 | 1 83 4 9 255 Move 2048 | 48 487 71 698 744 Hop . | . . . . . Pick Up 27 | 2 7 . 3 15 Fast Attach 16 | 2 2 . . 12 Attach 16 | . 7 . 2 7 Detach 3 | 1 2 . . . Swap 19 | 1 4 . 4 10 Drop 18 | 2 5 . . 11 Fire 86 | 16 48 . 8 14 Melee 81 | . . . 4 77 Ram 1 | . . . . 1 Kick . | . . . . . Crush . | . . . . . Escape Stasis . | . . . . . Rewire . | . . . . . Trap . | . . . . . Miscellaneous . | . . . . . Route ------- -11/Scrapyard -10/Materials (discovered 2 exits: [*Min] / [*Sub]) -10/Mines (discovered 2 exits: [*Mat] / [*Sub]) -10/Subcaves -8/Materials History --------- Turn | Location | Event 1 | -11/Scrapyard | Discovered new exit (range 3) 113 | -11/Scrapyard | Entered Materials 316 | -10/Materials | Build established: Mutant 717 | -10/Materials | Core integrity fell below 50% 749 | -10/Materials | Core integrity fell below 20% 764 | -10/Materials | System corruption reached 10% 777 | -10/Materials | Lost 7 parts (2p2n3w) 902 | -10/Materials | Discovered new exit (range 15) 905 | -10/Materials | Discovered new exit (range 15) 944 | -10/Materials | Entered Mines 955 | -10/Mines | Discovered new exit (range 10) 1005 | -10/Mines | Learned Materials garrison access intel 1018 | -10/Mines | Build established: Scavenger-Mutant 1018 | -10/Mines | Discovered new exit (range 15) 1034 | -10/Mines | Entered Subcaves 1262 | -10/Subcaves | Identified exit to Materials 1429 | -10/Subcaves | Shifting Twisted Machinery released Unknown Wheel 1430 | -10/Subcaves | Shifting Twisted Machinery released Unknown Wheel 1565 | -10/Subcaves | Learned location of Zion (-6) 1843 | -10/Subcaves | A swath of the cavern ceiling suddenly collapsed 1928 | -10/Subcaves | Entered Materials 1928 | -8/Materials | Evolved 4 slots: Propulsion x1, Utility x3 1929 | -8/Materials | Loaded intel: 1 garrison access location 2375 | -8/Materials | Lost 4 parts (1p1n2w) 2776 | -8/Materials | Lost 4 parts (1n3u) 3052 | -8/Materials | Repaired Lgt. Treads 3495 | -8/Materials | Build established: Hacker-Gladiator 3522 | -8/Materials | Core integrity fell below 50% 3565 | -8/Materials | Core integrity fell below 20% 3581 | -8/Materials | Released all parts (6) 3612 | -8/Materials | Lost 3 parts (2n1u) 3627 | -8/Materials | Destroyed by H-61 Shepherd with Heavy Assault Cannon Last Messages --------------- 03536_ U-05 Engineer builds a Wall. 03538_ System corrupted: Matter fused (-10). 03540_ W-25 Informer sends out distress signal. 03549_ Terminal disabled. 03559_ System corrupted: Substantial component data lost. 03560_ W-25 Informer sends out distress signal. 03575_ Lgt. Treads destroyed. 03576_ Sneak attack on A-02 Transporter. 03576_ Seismic Detector destroyed. 03576_ Critical hit (Burn: +37). 03580_ &EO2WZ%MC,PSZQWI,RB,6Q6B8JF AGS::HEFX&K 03581_ Lgt. Treads destroyed. 03581_ Released Actuator Array. 03581_ Released Hvy. Mace. 03581_ Released Med. Storage Unit. 03581_ Released Hvy. Hammer. 03581_ Released Hacking Suite. 03581_ Released System Shield. 03590_ Slammed into K-01 Serf. 03599_ ZTDO7TKZ#Y9OSZRDV>CMXMZ Map ----- +----------------------------------------------------+ | ?##########?# #??#** #############?# | | ????????????# #??# # #????# | | ???########## ####% =[ # / #??###/ | | ???# # ####+###* #??# | | ???#! =# % %# #?## | | ???# + T %%+[ #?# | | ???# = # # = #?## | | ???#! # ######## #??#! | | ???# #######????# # !% =#??# | | ########+##??????????### #??# ! | | # #????????????########+#??# ! | | # #???????????????????# #??# ! | | # #???????????????????# ####### | | # #???????????????????# # | | ####+#############????######??# # | | ???# +???? #### # | | ???# #############???? ## # *** | | ???# ## #???????? ## + *** | | ???# ## #???????? ## %# *** | | ???# ## """ #???????? ## # | | ???# ## """ #??????????????# ?# | | ???# ## """ #??????????????# ?# | | ???# ##! #??????????????# ??####### | | ???# #####+#############+##? ????????? | | ???# ????????? | | ???# %@ H???????? | | ???# a ????????? | | ???# ###+#### o #######??????????? | | ???# # # #????????????????? | | ???# # # ""#??????????????? | | ???# # # T"#??????????????? | | ???# # #? ""#??????????????? | | ???# # = #? ###??????????????? | | ???# # =!#? #????????????????? | | ???# ########? #????????????????? | | ???# ##???????? #????????????????? | | ???# ##???????? #????????????????? | | ???# ##???????? +????????????????? | | ???#####????????? #????????????????? | | ?????????????????? ???????????????????? | | ??????????????????????????????????????? | | ??????????????????????????????????????? | | ??????????????????????????????????????? | | ??????????????????????????????????????? | | ??????????????????????????????????????? | | ??????????????????????????????????????? | | ??????????????????????????????????????? | | ??????????????????????????????????????? | | ??????????????????????????????????????? | | ??????????????????????????????????????? | +----------------------------------------------------+ Best States ------------- Heat Dissipation 31 Coolant Potential 50 Energy Generation 14 Energy Capacity 265 Matter Stores 300 Matter Capacity 300 Sight Range 16 Terrain Scan Density 10 Armor Coverage 450 Resistance: KI 20 Evasion (%) 55 Recoil Reduction 3 Offensive Hacking 10 Defensive Hacking 10 Item Schematics ----------------- None Robot Schematics ------------------ None Fabricated ------------ Nothing Repaired ---------- Lgt. Treads | 15% | -8/Materials Alien Tech Used ----------------- None Achievements -------------- None Challenges ------------ None Game ------ Seed CoordinationHybridReplica Manual? 0 Play Time 00:39:16 Cumulative 71.2 hours Start 2025.06.04 @ 19:45:43 End 2025.06.04 @ 20:25:12 Sessions 1 Manual Loads 0 Difficulty Rogue Special Mode None Game No. 77 Rogue 77 Adventurer 0 Explorer 0 Win Type - Total 0 Types 0/0/0/0/0/0/0/0/0/0 Lore% 43 Gallery% 32 Achievement% 29 Wizard Run 0 Options --------- Layout 0 ASCII 0 Keyboard 1 Movement Numpad Keybinds 0 Fullscreen 2 Font 18/SmallcapsGlow Map View 76x50 Zoom Use 0% Tactical HUD 1 Map Filters NONE Filters NONE Steam 1 RUN: 01552442-ed5b-4a3f-969e-c2c84b40fc8e